fUSD/lending_fUSD_20250828
["ID","MTS","AMOUNT","RATE_DAILY","PERIOD"]
[381861864,1756374650530,-5800.0,0.00022109,2]
[381861866,1756374650539,-833.33,0.00022109,2]
[381861868,1756374650549,-500.4,0.00022109,2]
[381861870,1756374650559,-400.0,0.00022109,2]
[381861872,1756374650568,-2074.16,0.00022109,2]
[381861874,1756374650578,-1122.34,0.00022109,2]
[381861876,1756374650587,-560.03,0.00022109,2]
[381861878,1756374650596,-520.40419126,0.00022109,2]
[381861880,1756374650606,-423.69,0.00022109,2]
[381861882,1756374650615,-400.0,0.00022109,2]
[381861884,1756374650624,-600.0,0.00022164,2]
[381861886,1756374650634,-150.0,0.00022192,6]
[381861887,1756374650644,-942.0,0.00022284,6]
[381861890,1756374650654,-689.40676067,0.0002231,4]
[381861892,1756374650664,-600.0,0.0002231,4]
[381861894,1756374650674,-625.0,0.00022382,2]
[381861896,1756374650684,-400.0,0.00022382,2]
[381861898,1756374650694,-913.32,0.00022383,2]
[381861900,1756374650704,-500.62,0.00022383,2]
[381861902,1756374650713,-833.33,0.00022383,2]
[381861904,1756374650723,-400.0,0.00022383,2]
[381861906,1756374650732,-2074.16,0.00022383,2]
[381861908,1756374650741,-1122.34,0.00022383,2]
[381861910,1756374650752,-560.03,0.00022383,2]
[381861912,1756374650761,-423.69,0.00022383,2]
[381861914,1756374650771,-400.0,0.00022383,2]
[381861916,1756374650780,-3021.21,0.00022465,2]
[381861918,1756374650789,-300.47946633,0.00022466,2]
[381861920,1756374650798,-150.0,0.00022466,6]
[381861922,1756374650808,-160.0,0.0002251,2]
[381861924,1756374650818,-200.0,0.0002251,7]
[381861926,1756374650827,-447.36801802,0.00022521,2]
[381861928,1756374650836,-250.0,0.00022521,2]
[381861930,1756374650845,-409.82097998,0.00022527,2]
[381861932,1756374650855,-160.0,0.00022527,2]
[381861934,1756374650866,-212.25325354,0.00022529,2]
[381861936,1756374650876,-844.93374113,0.00022529,2]
[381861938,1756374650886,-942.0,0.00022558,6]
[381861940,1756374650895,-251.0,0.00022603,2]
[381861942,1756374650904,-625.0,0.00022656,2]
[381861944,1756374650913,-400.0,0.00022656,2]
[381861946,1756374650922,-913.32,0.00022657,2]
[381861948,1756374650932,-500.62,0.00022657,2]
[381861950,1756374650941,-833.33,0.00022657,2]
[381861952,1756374650950,-400.0,0.00022657,2]
[381861986,1756374651255,-2074.16,0.00022657,2]
[381861988,1756374651265,-1122.34,0.00022657,2]
[381861990,1756374651274,-560.03,0.00022657,2]
[381861992,1756374651284,-423.69,0.00022657,2]
[381861994,1756374651293,-400.0,0.00022657,2]
[381861996,1756374651302,-600.0,0.00022712,2]
[381861998,1756374651311,-150.0,0.0002274,6]
[381862000,1756374651321,-942.0,0.00022832,6]
[381862002,1756374651330,-1000.0,0.00022883,2]
[381862004,1756374651339,-200.0,0.0002291,7]
[381862006,1756374651349,-625.0,0.0002293,2]
[381862008,1756374651360,-400.0,0.0002293,2]
[381862010,1756374651370,-913.32,0.00022931,2]
[381862012,1756374651380,-500.62,0.00022931,2]
[381862014,1756374651390,-833.33,0.00022931,2]
[381862016,1756374651399,-400.0,0.00022931,2]
[381862018,1756374651409,-2074.16,0.00022931,2]
[381862020,1756374651418,-1122.34,0.00022931,2]
[381862022,1756374651427,-560.03,0.00022931,2]
[381862024,1756374651436,-423.69,0.00022931,2]
[381862026,1756374651446,-223.35791931,0.00022931,2]
[381862028,1756374651455,-252.67,0.00022938,2]
[381862030,1756374651464,-400.86252329,0.0002297,2]
[381862032,1756374651473,-700.0,0.0002297,2]
[381862034,1756374651483,-1200.0,0.0002297,2]
[381862036,1756374651492,-900.0,0.00023,8]
[381862038,1756374651501,-900.0,0.00023,8]
[381862040,1756374651510,-900.0,0.00023,8]
[381862042,1756374651519,-900.0,0.00023,8]
[381862043,1756374651528,-900.0,0.00023,8]
[381862045,1756374651537,-900.0,0.00023,8]
[381862047,1756374651547,-900.0,0.00023,8]
[381862049,1756374651555,-900.0,0.00023,8]
[381862051,1756374651565,-160.0,0.00023,3]
[381862053,1756374651574,-175.38277881,0.00023014,6]
[381862055,1756374651584,-350.0,0.00023068,2]
[381862057,1756374651593,-558.69011223,0.00023074,2]
[381862059,1756374651603,-200.0,0.000231,7]
[381862062,1756374651612,-942.0,0.00023105,6]
[381862064,1756374651622,-272.32,0.00023171,2]
[381862066,1756374651632,-625.0,0.00023204,2]
[381862067,1756374651641,-400.0,0.00023204,2]
[381862069,1756374651650,-913.32,0.00023205,2]
[381862071,1756374651659,-500.62,0.00023205,2]
[381862073,1756374651668,-833.33,0.00023205,2]
[381862075,1756374651678,-400.0,0.00023205,2]
[381862077,1756374651687,-2074.16,0.00023205,2]
[381862079,1756374651696,-1122.34,0.00023205,2]
[381862081,1756374651705,-560.03,0.00023205,2]
[381862083,1756374651715,-423.69,0.00023205,2]
[381862085,1756374651724,-914.26787256,0.00023233,2]
[381862087,1756374651733,-600.0,0.0002326,2]
[381862089,1756374651742,-1427.89,0.00023368,2]
[381862091,1756374651751,-9260.32,0.00023368,2]
[381862093,1756374651760,-942.0,0.00023379,6]
[381862095,1756374651769,-8973.49940449,0.00023384,2]
[381862097,1756374651778,-5000.0,0.00023384,2]
[381862099,1756374651787,-5000.0,0.00023384,2]
[381862101,1756374651797,-625.0,0.00023478,2]
[381862103,1756374651806,-400.0,0.00023478,2]
[381862105,1756374651815,-913.32,0.00023479,2]
[381862107,1756374651824,-500.62,0.00023479,2]
[381862109,1756374651833,-833.33,0.00023479,2]
[381862111,1756374651843,-400.0,0.00023479,2]
[381862113,1756374651852,-2074.16,0.00023479,2]
[381862115,1756374651865,-1122.34,0.00023479,2]
[381862117,1756374651874,-560.03,0.00023479,2]
[381862119,1756374651883,-423.69,0.00023479,2]
[381862121,1756374651892,-150.0,0.000235,2]
[381862123,1756374651902,-200.0,0.0002351,7]
[381862125,1756374651911,-450.0,0.00023616,2]
[381862127,1756374651920,-942.0,0.00023653,6]
[381862129,1756374651930,-280.54255354,0.0002372,2]
[381862131,1756374651941,-225.6,0.00023726,2]
[381862133,1756374651951,-625.0,0.00023752,2]
[381862135,1756374651960,-400.0,0.00023752,2]
[381862137,1756374651970,-913.32,0.00023753,2]
[381862139,1756374651979,-500.62,0.00023753,2]
[381862141,1756374651988,-833.33,0.00023753,2]
[381862143,1756374651997,-400.0,0.00023753,2]
[381862145,1756374652007,-2074.16,0.00023753,2]
[381862147,1756374652016,-1122.34,0.00023753,2]
[381862149,1756374652025,-560.03,0.00023753,2]
[381862151,1756374652034,-423.69,0.00023753,2]
[381862153,1756374652043,-600.0,0.00023808,2]
[381862155,1756374652052,-755.97605469,0.00023824,2]
[381862157,1756374652061,-200.0,0.0002391,7]
[381862159,1756374652070,-942.0,0.00023927,6]
[381862161,1756374652079,-4000.0,0.00024,4]
[381862163,1756374652089,-160.0,0.00024,7]
[381862165,1756374652098,-625.0,0.00024026,2]
[381862167,1756374652106,-467.48883627,0.00024026,2]
[381862169,1756374652115,-913.32,0.00024027,2]
[381862171,1756374652125,-500.62,0.00024027,2]
[381862173,1756374652135,-833.33,0.00024027,2]
[381862175,1756374652145,-400.0,0.00024027,2]
[381862177,1756374652154,-2074.16,0.00024027,2]
[381862179,1756374652164,-1122.34,0.00024027,2]
[381862181,1756374652174,-560.03,0.00024027,2]
[381862183,1756374652184,-423.69,0.00024027,2]
[381862185,1756374652193,-250.0,0.00024048,2]
[381862187,1756374652202,-89188.86,0.000241,7]
[381862189,1756374652211,-200.0,0.000241,7]
[381862191,1756374652220,-389.76,0.00024109,2]
[381862193,1756374652230,-550.0,0.00024164,2]
[381862195,1756374652239,-7844.13,0.000242,2]
[381862197,1756374652248,-950.53677934,0.00024201,6]
[381862199,1756374652257,-408.09,0.000243,7]
[381862201,1756374652266,-5720.62,0.000243,7]
[381862203,1756374652277,-625.0,0.000243,2]
[381862205,1756374652286,-913.35164026,0.00024301,2]
[381862207,1756374652296,-500.76222514,0.00024301,2]
[381862210,1756374652306,-833.41,0.00024301,2]
[381862212,1756374652315,-376.30836765,0.00024301,2]
[381862214,1756374652324,-2074.27544836,0.00024301,2]
[381862215,1756374652334,-1122.53916689,0.00024301,2]
[381862217,1756374652344,-560.16912837,0.00024301,2]
[381862220,1756374652354,-423.80878049,0.00024301,2]
[381862222,1756374652363,-600.0,0.00024356,2]
[381862223,1756374652372,-200.0,0.0002451,7]
[381862225,1756374652383,-317.62,0.00024657,2]
[381862227,1756374652392,-317.62,0.00024657,2]
[381862229,1756374652401,-317.62,0.00024657,2]
[381862231,1756374652411,-317.62,0.00024657,2]
[381862233,1756374652420,-317.62,0.00024657,2]
[381862235,1756374652429,-317.62,0.00024657,2]
[381862237,1756374652438,-317.62,0.00024657,2]
[381862239,1756374652448,-317.62,0.00024657,2]
[381862241,1756374652457,-317.62,0.00024657,2]
[381862243,1756374652466,-317.62,0.00024657,2]
[381862246,1756374652480,-317.62,0.00024657,2]
[381862248,1756374652490,-317.62,0.00024657,2]
[381862250,1756374652499,-317.62,0.00024657,2]
[381862252,1756374652508,-317.62,0.00024657,2]
[381862254,1756374652517,-317.62,0.00024657,2]
[381862256,1756374652527,-317.62,0.00024657,2]
[381862258,1756374652536,-317.62,0.00024657,2]
[381862260,1756374652545,-317.62,0.00024657,2]
[381862262,1756374652555,-317.62,0.00024657,2]
[381862263,1756374652564,-317.62,0.00024657,2]
[381862265,1756374652573,-317.62,0.00024657,2]
[381862267,1756374652582,-317.62,0.00024657,2]
[381862269,1756374652592,-317.62,0.00024657,2]
[381862271,1756374652601,-317.84319964,0.00024657,2]
[381862273,1756374652610,-3021.21,0.00024657,4]
[381862275,1756374652619,-1000.0,0.00024658,2]
[381862277,1756374652632,-500.0,0.00024658,6]
[381862279,1756374652641,-1111.65422311,0.00024675,3]
[381862281,1756374652651,-650.0,0.00024712,2]
[381862283,1756374652659,-605956.10747,0.000248,3]
[381862285,1756374652669,-300.0,0.000249,9]
[381862287,1756374652679,-610807.644512,0.000249,3]
[381862289,1756374652688,-9576.51948982,0.000249,2]
[381862291,1756374652697,-600.0,0.00024904,2]
[381862293,1756374652707,-200.0,0.0002491,7]
[381862295,1756374652716,-500.0,0.00024932,6]
[381862297,1756374652725,-1000.0,0.00024963,2]
[381862299,1756374652734,-160.0,0.00025,3]
[381862301,1756374652743,-160.0,0.00025,7]
[381862303,1756374652752,-200.0,0.000251,7]
[381862305,1756374652762,-211.52,0.00025197,2]
[381862307,1756374652771,-500.0,0.00025206,6]
[381862309,1756374652780,-750.0,0.0002526,2]
[381862310,1756374652789,-251.0,0.00025342,2]
[381862311,1756374652798,-600.0,0.00025452,2]
[381862312,1756374652807,-24679.78812684,0.00025454,2]
[381862313,1756374652816,-500.0,0.0002548,6]
[381862314,1756374652825,-162.97116817,0.0002555,2]
[381862316,1756374652834,-209.23523988,0.00025661,2]
[381862318,1756374652843,-280.54255354,0.00025693,2]
[381862320,1756374652852,-500.0,0.00025754,6]
[381862322,1756374652861,-178.4350984,0.00025808,2]
[381862324,1756374652871,-9576.51948964,0.00025859,4]
[381862326,1756374652880,-914.26787256,0.000259,2]
[381862328,1756374652894,-1255.80049178,0.0002592,4]
[381862330,1756374652903,-570.7453346,0.0002592,4]
[381862332,1756374652914,-5111.33,0.00026,7]
[381862334,1756374652923,-1058.53,0.00026,2]
[381862336,1756374652933,-4000.0,0.00026,4]
[381862338,1756374652942,-600.0,0.00026,2]
[381862340,1756374652952,-858.62,0.00026027,2]
[381862343,1756374652963,-858.62,0.00026027,2]
[381862345,1756374652973,-858.62,0.00026027,2]
[381862347,1756374652983,-858.62,0.00026027,2]
[381862349,1756374652993,-858.62,0.00026027,2]
[381862351,1756374653002,-858.62,0.00026027,2]
[381862353,1756374653011,-858.62,0.00026027,2]
[381862355,1756374653020,-858.62,0.00026027,2]
[381862357,1756374653029,-858.62,0.00026027,2]
[381862359,1756374653039,-858.62,0.00026027,2]
[381862360,1756374653048,-858.62,0.00026027,2]
[381862363,1756374653058,-858.62,0.00026027,2]
[381862365,1756374653069,-858.62,0.00026027,2]
[381862366,1756374653078,-858.62,0.00026027,2]
[381862369,1756374653088,-858.62,0.00026027,2]
[381862370,1756374653099,-858.62,0.00026027,2]
[381862373,1756374653108,-858.62,0.00026027,2]
[381862375,1756374653117,-858.62,0.00026027,2]
[381862376,1756374653126,-858.62,0.00026027,2]
[381862379,1756374653135,-858.62,0.00026027,2]
[381862381,1756374653145,-858.62,0.00026027,2]
[381862383,1756374653155,-858.62,0.00026027,2]
[381862385,1756374653165,-858.62,0.00026027,2]
[381862387,1756374653174,-858.69497371,0.00026027,2]
[381862389,1756374653183,-500.0,0.00026028,6]
[381862391,1756374653193,-2500.0,0.00026187,7]
[381862393,1756374653202,-2500.0,0.00026196,7]
[381862395,1756374653211,-2500.0,0.00026204,7]
[381862397,1756374653220,-2500.0,0.00026213,7]
[381862398,1756374653230,-2500.0,0.00026222,7]
[381862401,1756374653239,-2500.0,0.00026231,7]
[381862403,1756374653253,-2500.0,0.0002624,7]
[381862405,1756374653263,-1255.80049178,0.0002624,4]
[381862407,1756374653272,-570.7453346,0.0002624,4]
[381862409,1756374653281,-2500.0,0.00026248,7]
[381862411,1756374653292,-2500.0,0.00026257,7]
[381862413,1756374653301,-2500.0,0.00026266,7]
[381862415,1756374653310,-2500.0,0.00026275,7]
[381862417,1756374653319,-2500.0,0.00026284,7]
[381862419,1756374653329,-2500.0,0.00026292,7]
[381862421,1756374653338,-779.52,0.00026301,7]
[381862423,1756374653347,-2500.0,0.00026301,7]
[381862425,1756374653358,-592.0,0.00026302,6]
[381862427,1756374653368,-2500.0,0.0002631,7]
[381862429,1756374653377,-2500.0,0.00026319,7]
[381862431,1756374653387,-2500.0,0.00026328,7]
[381862433,1756374653396,-2500.0,0.00026336,7]
[381862435,1756374653405,-2500.0,0.00026345,7]
[381862437,1756374653414,-2500.0,0.00026354,7]
[381862439,1756374653424,-2500.0,0.00026363,7]
[381862441,1756374653433,-2500.0,0.00026372,7]
[381862443,1756374653442,-2500.0,0.0002638,7]
[381862445,1756374653451,-2500.0,0.00026389,7]
[381862447,1756374653461,-2500.0,0.00026398,7]
[381862449,1756374653470,-7844.13,0.000264,2]
[381862451,1756374653479,-2500.0,0.00026407,7]
[381862453,1756374653489,-2500.0,0.00026416,7]
[381862455,1756374653498,-2500.0,0.00026424,7]
[381862457,1756374653507,-2500.0,0.00026433,7]
[381862459,1756374653517,-2500.0,0.00026442,7]
[381862461,1756374653526,-2500.0,0.00026451,7]
[381862463,1756374653536,-2500.0,0.0002646,7]
[381862465,1756374653545,-2500.0,0.00026468,7]
[381862467,1756374653554,-2500.0,0.00026477,7]
[381862469,1756374653563,-2500.0,0.00026486,7]
[381862471,1756374653573,-2500.0,0.00026495,7]
[381862473,1756374653583,-89188.86,0.000265,7]
[381862475,1756374653593,-600.0,0.00026548,2]
[381862477,1756374653602,-1255.80049178,0.0002656,4]
[381862479,1756374653612,-570.7453346,0.0002656,4]
[381862481,1756374653621,-5111.33,0.000266,7]
[381862483,1756374653631,-5720.62,0.000266,7]
[381862485,1756374653640,-408.09,0.000266,7]
[381862487,1756374653649,-291.55,0.00026676,2]
[381862489,1756374653658,-755.97605469,0.00026786,2]
[381862491,1756374653668,-350.0,0.00026789,5]
[381862493,1756374653677,-3376.0,0.0002681,2]
[381862495,1756374653687,-2032.0,0.0002681,2]
[381862497,1756374653696,-1256.0,0.0002681,2]
[381862499,1756374653705,-926.0,0.0002681,2]
[381862501,1756374653715,-599.0,0.0002681,2]
[381862503,1756374653724,-566.0,0.0002681,2]
[381862505,1756374653733,-1575.0,0.0002681,2]
[381862507,1756374653742,-1335.972,0.0002681,2]
[381862509,1756374653751,-4156.0,0.0002681,2]
[381862512,1756374653761,-6148.0,0.0002681,2]
[381862514,1756374653770,-21111.0,0.0002681,2]
[381862516,1756374653780,-718.0,0.0002681,2]
[381862518,1756374653789,-9576.51948964,0.00026817,6]
[381862520,1756374653798,-3021.21,0.00026849,6]
[381862522,1756374653808,-1255.80049178,0.0002688,4]
[381862524,1756374653817,-570.7453346,0.0002688,4]
[381862526,1756374653826,-5166.92681283,0.0002701,2]
[381862528,1756374653836,-522.0,0.00027137,2]
[381862530,1756374653846,-1255.80049178,0.000272,4]
[381862532,1756374653855,-570.7453346,0.000272,4]
[381862534,1756374653865,-1058.53,0.000273,2]
[381862536,1756374653875,-1000.0,0.00027397,2]
[381862538,1756374653887,-1000.0,0.00027397,2]
[381862540,1756374653896,-1000.0,0.00027397,2]
[381862542,1756374653905,-1000.0,0.00027397,2]
[381862544,1756374653914,-1000.0,0.00027397,2]
[381862546,1756374653922,-229.48406925,0.00027397,2]
[381862548,1756374653931,-619.99,0.00027397,2]
[381862550,1756374653941,-619.99,0.00027397,2]
[381862552,1756374653950,-619.99,0.00027397,2]
[381862554,1756374653959,-619.99,0.00027397,2]
[381862556,1756374653968,-619.99,0.00027397,2]
[381862558,1756374653977,-619.99,0.00027397,2]
[381862560,1756374653986,-619.99,0.00027397,2]
[381862562,1756374653995,-619.99,0.00027397,2]
[381862564,1756374654004,-619.99,0.00027397,2]
[381862565,1756374654013,-619.99,0.00027397,2]
[381862567,1756374654023,-619.99,0.00027397,2]
[381862570,1756374654032,-619.99,0.00027397,2]
[381862571,1756374654041,-619.99,0.00027397,2]
[381862574,1756374654050,-619.99,0.00027397,2]
[381862576,1756374654059,-619.99,0.00027397,2]
[381862578,1756374654068,-619.99,0.00027397,2]
[381862580,1756374654078,-619.99,0.00027397,2]
[381862581,1756374654087,-619.99,0.00027397,2]
[381862583,1756374654096,-619.99,0.00027397,2]
[381862586,1756374654106,-619.99,0.00027397,2]
[381862588,1756374654115,-619.99,0.00027397,2]
[381862590,1756374654125,-619.99,0.00027397,2]
[381862592,1756374654134,-619.99,0.00027397,2]
[381862594,1756374654147,-620.07430268,0.00027397,2]
[381862596,1756374654156,-500.0,0.00027397,10]
[381862598,1756374654165,-500.0,0.00027397,10]
[381862600,1756374654175,-500.0,0.00027397,10]
[381862602,1756374654184,-500.0,0.00027397,10]
[381862604,1756374654193,-500.0,0.00027397,10]
[381862623,1756374654358,-500.0,0.00027397,10]
[381862625,1756374654369,-500.0,0.00027397,10]
[381862627,1756374654378,-500.0,0.00027397,10]
[381862629,1756374654387,-500.0,0.00027397,10]
[381862631,1756374654396,-277.49985159,0.00027397,10]
[381862633,1756374654406,-658.16,0.00027397,2]
[381862635,1756374654415,-658.16,0.00027397,2]
[381862637,1756374654425,-658.16,0.00027397,2]
[381862639,1756374654434,-658.16,0.00027397,2]
[381862641,1756374654444,-658.16,0.00027397,2]
[381862643,1756374654453,-658.16,0.00027397,2]
[381862645,1756374654463,-658.16,0.00027397,2]
[381862647,1756374654472,-658.16,0.00027397,2]
[381862649,1756374654481,-658.16,0.00027397,2]
[381862651,1756374654490,-658.16,0.00027397,2]
[381862653,1756374654500,-658.16,0.00027397,2]
[381862655,1756374654509,-658.16,0.00027397,2]
[381862657,1756374654518,-658.16,0.00027397,2]
[381862659,1756374654528,-658.16,0.00027397,2]
[381862661,1756374654537,-658.16,0.00027397,2]
[381862663,1756374654547,-658.16,0.00027397,2]
[381862665,1756374654556,-658.16,0.00027397,2]
[381862667,1756374654566,-658.16,0.00027397,2]
[381862669,1756374654575,-658.16,0.00027397,2]
[381862671,1756374654585,-658.16,0.00027397,2]
[381862673,1756374654595,-658.16,0.00027397,2]
[381862675,1756374654606,-658.16,0.00027397,2]
[381862677,1756374654616,-658.16,0.00027397,2]
[381862679,1756374654625,-658.28794739,0.00027397,2]
[381862681,1756374654637,-219.00382419,0.00027397,2]
[381862683,1756374654648,-150.0,0.00027397,6]
[381862685,1756374654658,-500.0,0.00027397,2]
[381862687,1756374654668,-500.0,0.00027397,2]
[381862689,1756374654677,-500.0,0.00027397,2]
[381862691,1756374654688,-635.19582471,0.00027397,2]
[381862693,1756374654698,-500.0,0.00027397,2]
[381862695,1756374654709,-500.0,0.00027397,2]
[381862698,1756374654719,-500.0,0.00027397,2]
[381862700,1756374654728,-500.0,0.00027397,2]
[381862702,1756374654738,-500.0,0.00027397,2]
[381862704,1756374654747,-300.0,0.00027397,2]
[381862706,1756374654756,-600.0,0.00027397,80]
[381862708,1756374654766,-700.0,0.00027397,2]
[381862710,1756374654775,-1133.8,0.00027397,16]
[381862712,1756374654784,-163.007,0.0002745,16]
[381862714,1756374654793,-1427.551,0.0002745,16]
[381862716,1756374654803,-5111.33,0.000275,7]
[381862718,1756374654813,-1255.80049178,0.0002752,4]
[381862720,1756374654822,-570.7453346,0.0002752,4]
[381862722,1756374654831,-280.54255354,0.00027666,2]
[381862724,1756374654841,-217.1039554,0.00027671,6]
[381862726,1756374654850,-9576.51948964,0.00027776,8]
[381862728,1756374654860,-1255.80049178,0.0002784,4]
[381862730,1756374654870,-570.7453346,0.0002784,4]
[381862732,1756374654882,-131901.63191229,0.000279,3]
[381862734,1756374654891,-7844.13,0.000279,2]
[381862736,1756374654900,-657.23351585,0.00028,60]
[381862738,1756374654911,-770.0,0.00028,2]
[381862740,1756374654920,-4000.0,0.00028,4]
[381862742,1756374654931,-251.0,0.00028082,2]
[381862744,1756374654940,-89188.86,0.000281,7]
[381862746,1756374654950,-5720.62,0.000281,7]
[381862748,1756374654961,-408.09,0.000281,7]
[381862750,1756374654971,-1255.80049178,0.0002816,4]
[381862752,1756374654981,-570.7453346,0.0002816,4]
[381862754,1756374654991,-957.74,0.00028219,7]
[381862756,1756374655000,-1827.86,0.000283,7]
[381862758,1756374655010,-1255.80049178,0.0002848,4]
[381862760,1756374655019,-570.7453346,0.0002848,4]
[381862762,1756374655029,-1169.28,0.00028493,12]
[381862764,1756374655038,-914.26787256,0.00028567,2]
[381862766,1756374655048,-153.0,0.000286,2]
[381862768,1756374655057,-153.0,0.000286,2]
[381862770,1756374655066,-153.0,0.000286,2]
[381862772,1756374655075,-1058.53,0.000286,30]
[381862774,1756374655085,-9576.51948964,0.00028734,10]
[381862776,1756374655095,-1255.80049178,0.000288,4]
[381862778,1756374655104,-570.7453346,0.000288,4]
[381862780,1756374655115,-957.74,0.00028904,8]
[381862782,1756374655124,-769.0,0.00029,30]
[381862784,1756374655134,-160.0,0.00029,10]
[381862786,1756374655144,-212.25325354,0.00029,10]
[381862788,1756374655153,-3021.21,0.00029041,8]
[381862790,1756374655163,-1255.80049178,0.0002912,4]
[381862792,1756374655173,-570.7453346,0.0002912,4]
[381862794,1756374655182,-7844.13,0.000294,2]
[381862796,1756374655192,-1255.80049178,0.0002944,4]
[381862798,1756374655201,-570.7453346,0.0002944,4]
[381862800,1756374655211,-167.91875214,0.00029457,30]
[381862802,1756374655220,-150.0,0.00029457,30]
[381862804,1756374655230,-220.27007466,0.00029457,30]
[381862806,1756374655239,-150.0,0.00029457,30]
[381862808,1756374655249,-292.65941372,0.00029457,30]
[381862810,1756374655258,-150.0,0.00029457,30]
[381862812,1756374655268,-384.32851767,0.00029457,30]
[381862814,1756374655277,-5111.33,0.000295,7]
[381862816,1756374655286,-957.74,0.00029589,9]
[381862818,1756374655296,-9576.51948964,0.00029693,12]
[381862820,1756374655305,-89188.86,0.000297,7]
[381862822,1756374655314,-5720.62,0.000297,7]
[381862824,1756374655323,-408.09,0.000297,7]
[381862826,1756374655332,-755.97605469,0.00029748,2]
[381862828,1756374655341,-1255.80049178,0.0002976,4]
[381862830,1756374655351,-570.7453346,0.0002976,4]
[381862832,1756374655361,-3376.0,0.0002981,2]
[381862834,1756374655370,-2032.0,0.0002981,2]
[381862836,1756374655381,-1256.0,0.0002981,2]
[381862838,1756374655390,-926.0,0.0002981,2]
[381862840,1756374655400,-599.0,0.0002981,2]
[381862842,1756374655409,-566.0,0.0002981,2]
[381862844,1756374655419,-1575.0,0.0002981,2]
[381862846,1756374655428,-1298.0,0.0002981,2]
[381862847,1756374655438,-4156.0,0.0002981,2]
[381862849,1756374655447,-6144.0,0.0002981,2]
[381862851,1756374655457,-21111.0,0.0002981,2]
[381862853,1756374655467,-718.0,0.0002981,2]
[381862855,1756374655476,-1058.53,0.000299,30]
[381862857,1756374655486,-16500.0,0.000299,30]
[381862859,1756374655495,-312.97,0.0003,2]
[381862861,1756374655504,-884.61,0.0003,30]
[381862863,1756374655513,-769.0,0.0003,30]
[381862865,1756374655525,-150.0,0.0003,2]
[381862867,1756374655535,-160.0,0.0003,30]
[381862869,1756374655544,-212.25325354,0.0003,30]
[381862871,1756374655554,-4000.0,0.0003,4]
[381862873,1756374655563,-1255.80049178,0.0003008,4]
[381862875,1756374655572,-570.7453346,0.0003008,4]
[381862877,1756374655581,-2965.0,0.00030136,5]
[381862879,1756374655590,-217.0,0.00030137,120]
[381862881,1756374655599,-500.0,0.00030137,7]
[381862883,1756374655608,-500.0,0.00030142,7]
[381862885,1756374655617,-1600.0,0.00030148,7]
[381862887,1756374655628,-500.0,0.00030158,7]
[381862889,1756374655637,-1000.0,0.00030172,7]
[381862891,1756374655646,-1400.0,0.0003018,7]
[381862893,1756374655655,-4000.0,0.00030192,2]
[381862895,1756374655665,-600.0,0.00030196,7]
[381862896,1756374655674,-500.0,0.00030212,7]
[381862898,1756374655683,-1600.0,0.00030215,7]
[381862900,1756374655692,-598.42596953,0.00030224,7]
[381862902,1756374655702,-401.89009191,0.00030232,7]
[381862904,1756374655711,-500.0,0.00030234,7]
[381862906,1756374655720,-500.0,0.0003024,7]